fUSD/lending_fUSD_20251006
["ID","MTS","AMOUNT","RATE_DAILY","PERIOD"]
[389653296,1759768244250,-200.0,0.00018056,2]
[389653297,1759768244259,-200.0,0.00018056,2]
[389653298,1759768244273,-200.0,0.00018056,2]
[389653299,1759768244282,-200.0,0.00018056,2]
[389653300,1759768244291,-200.0,0.00018056,2]
[389653301,1759768244301,-200.0,0.00018056,2]
[389653302,1759768244315,-200.0,0.00018056,2]
[389653303,1759768244324,-234.0,0.00018056,2]
[389653304,1759768244334,-2717.527174,0.00018068,2]
[389653305,1759768244343,-3170.448371,0.00018068,2]
[389653306,1759768244353,-220.547285,0.00018068,2]
[389653307,1759768244367,-155.028885,0.00018068,2]
[389653308,1759768244376,-172.168852,0.00018068,2]
[389653309,1759768244386,-4382.045832,0.00018068,2]
[389653310,1759768244395,-2787.264623,0.00018068,2]
[389653311,1759768244407,-500.0,0.00018082,2]
[389653312,1759768244416,-2786.0,0.00018082,2]
[389653313,1759768244425,-500.0,0.00018082,2]
[389653314,1759768244435,-1249.0,0.00018082,2]
[389653315,1759768244448,-500.0,0.00018082,2]
[389653316,1759768244458,-500.0,0.00018082,2]
[389653317,1759768244467,-586.0,0.00018082,2]
[389653318,1759768244476,-470.0,0.00018082,2]
[389653319,1759768244487,-500.0,0.00018082,2]
[389653320,1759768244496,-151.0,0.00018082,2]
[389653321,1759768244505,-1000.0,0.00018082,2]
[389653322,1759768244514,-337.080449,0.00018099,2]
[389653323,1759768244524,-214.404971,0.00018099,2]
[389653324,1759768244533,-452.921196,0.00018099,2]
[389653325,1759768244543,-337.080449,0.00018099,2]
[389653326,1759768244551,-214.404971,0.00018099,2]
[389653327,1759768244561,-452.921196,0.00018099,2]
[389653328,1759768244570,-1756.00327418,0.000181,2]
[389653329,1759768244579,-200.0,0.000181,2]
[389653330,1759768244588,-1488.76242661,0.00018116,2]
[389653331,1759768244598,-895.83838886,0.00018116,2]
[389653332,1759768244607,-151.0,0.00018122,2]
[389653333,1759768244616,-151.0,0.00018122,2]
[389653334,1759768244625,-151.0,0.00018122,2]
[389653335,1759768244634,-151.0,0.00018122,2]
[389653336,1759768244644,-151.0,0.00018122,2]
[389653337,1759768244653,-151.0,0.00018122,2]
[389653338,1759768244663,-1090.0,0.00018125,2]
[389653339,1759768244672,-2351.0,0.00018149,2]
[389653340,1759768244681,-176.27252862,0.00018164,2]
[389653341,1759768244690,-337.080449,0.00018167,7]
[389653342,1759768244700,-214.404971,0.00018167,7]
[389653343,1759768244711,-452.921196,0.00018167,7]
[389653344,1759768244722,-337.080449,0.00018167,7]
[389653345,1759768244732,-214.404971,0.00018167,7]
[389653346,1759768244742,-452.921196,0.00018167,7]
[389653347,1759768244751,-151.723226,0.00018167,7]
[389653348,1759768244760,-2717.527174,0.00018167,7]
[389653349,1759768244769,-3170.448371,0.00018167,7]
[389653350,1759768244779,-220.547285,0.00018167,7]
[389653351,1759768244788,-155.028885,0.00018167,7]
[389653352,1759768244797,-172.168852,0.00018167,7]
[389653353,1759768244807,-4382.045832,0.00018167,7]
[389653354,1759768244816,-2787.264623,0.00018167,7]
[389653355,1759768244825,-162.294121,0.00018167,7]
[389653356,1759768244834,-181.168478,0.00018167,7]
[389653357,1759768244844,-954.29549402,0.000182,2]
[389653358,1759768244854,-174.10146186,0.00018211,30]
[389653359,1759768244863,-162.67279949,0.00018211,2]
[389653360,1759768244872,-151.0,0.00018211,2]
[389653361,1759768244882,-151.0,0.00018211,2]
[389653362,1759768244891,-151.0,0.00018211,2]
[389653363,1759768244900,-151.0,0.00018211,2]
[389653364,1759768244909,-151.0,0.00018211,2]
[389653365,1759768244919,-151.0,0.00018211,2]
[389653366,1759768244928,-151.0,0.00018211,2]
[389653367,1759768244937,-151.0,0.00018211,2]
[389653368,1759768244946,-151.0,0.00018211,2]
[389653369,1759768244956,-151.0,0.00018211,2]
[389653370,1759768244965,-151.0,0.00018211,2]
[389653371,1759768244975,-151.0,0.00018211,2]
[389653372,1759768244984,-151.0,0.00018211,2]
[389653373,1759768244993,-151.0,0.00018211,2]
[389653374,1759768245003,-151.0,0.00018211,2]
[389653375,1759768245012,-235.251234,0.00018211,2]
[389653376,1759768245021,-151.0,0.00018211,2]
[389653377,1759768245031,-235.251234,0.00018211,2]
[389653378,1759768245042,-235.251234,0.00018211,2]
[389653379,1759768245051,-235.251234,0.00018211,2]
[389653380,1759768245060,-151.0,0.00018228,2]
[389653381,1759768245069,-151.0,0.00018228,2]
[389653382,1759768245078,-151.0,0.00018228,2]
[389653383,1759768245087,-151.0,0.00018228,2]
[389653384,1759768245096,-151.0,0.00018228,2]
[389653385,1759768245105,-151.0,0.00018228,2]
[389653386,1759768245115,-215.967015,0.00018228,2]
[389653387,1759768245125,-151.0,0.00018228,2]
[389653388,1759768245135,-226.390668,0.00018228,2]
[389653389,1759768245144,-151.0,0.00018228,2]
[389653390,1759768245153,-151.0,0.00018228,2]
[389653391,1759768245162,-156.963683,0.00018228,2]
[389653392,1759768245171,-283.433707,0.00018228,2]
[389653393,1759768245180,-151.0,0.00018228,2]
[389653394,1759768245190,-283.433707,0.00018228,2]
[389653395,1759768245199,-151.0,0.00018228,2]
[389653396,1759768245208,-283.433707,0.00018228,2]
[389653397,1759768245217,-283.433707,0.00018228,2]
[389653398,1759768245225,-151.0,0.00018228,2]
[389653399,1759768245234,-184.191018,0.00018228,2]
[389653400,1759768245244,-184.191018,0.00018228,2]
[389653401,1759768245253,-184.191018,0.00018228,2]
[389653402,1759768245262,-184.191018,0.00018228,2]
[389653403,1759768245271,-3715.77974058,0.00018233,2]
[389653404,1759768245280,-4405.30768951,0.00018252,2]
[389653405,1759768245294,-152.0,0.00018267,12]
[389653406,1759768245303,-248.71531821,0.00018287,2]
[389653407,1759768245312,-346.92554585,0.00018287,2]
[389653408,1759768245321,-722.52041113,0.00018288,2]
[389653409,1759768245330,-28355.13818658,0.0001831,2]
[389653410,1759768245346,-4529.27476671,0.0001831,2]
[389653411,1759768245359,-500.0,0.00018356,2]
[389653412,1759768245369,-2786.0,0.00018356,2]
[389653413,1759768245378,-500.0,0.00018356,2]
[389653414,1759768245387,-1249.0,0.00018356,2]
[389653415,1759768245397,-500.0,0.00018356,2]
[389653416,1759768245406,-500.0,0.00018356,2]
[389653417,1759768245415,-586.0,0.00018356,2]
[389653418,1759768245424,-470.0,0.00018356,2]
[389653419,1759768245433,-500.0,0.00018356,2]
[389653420,1759768245443,-151.0,0.00018356,2]
[389653421,1759768245452,-3223.2451637,0.00018356,2]
[389653422,1759768245463,-713.46,0.00018356,2]
[389653423,1759768245474,-981.36511929,0.00018356,2]
[389653425,1759768245754,-496.39594474,0.00018356,2]
[389653426,1759768245766,-26096.98377227,0.00018356,2]
[389653427,1759768245776,-1000.0,0.00018399,2]
[389653428,1759768245787,-214.2,0.000184,2]
[389653429,1759768245796,-954.29549402,0.000184,2]
[389653430,1759768245805,-214.2,0.000184,2]
[389653431,1759768245814,-150.0,0.000184,2]
[389653432,1759768245823,-158.54795239,0.000184,2]
[389653433,1759768245833,-227.79228566,0.00018407,2]
[389653434,1759768245842,-174.10146186,0.00018429,30]
[389653435,1759768245852,-337.080449,0.00018463,7]
[389653436,1759768245862,-214.404971,0.00018463,7]
[389653437,1759768245871,-452.921196,0.00018463,7]
[389653438,1759768245880,-337.080449,0.00018463,7]
[389653439,1759768245888,-214.404971,0.00018463,7]
[389653440,1759768245898,-452.921196,0.00018463,7]
[389653441,1759768245907,-151.723226,0.00018463,7]
[389653442,1759768245916,-2717.527174,0.00018463,7]
[389653443,1759768245928,-3170.448371,0.00018463,7]
[389653444,1759768245937,-220.547285,0.00018463,7]
[389653445,1759768245946,-155.028885,0.00018463,7]
[389653446,1759768245956,-172.168852,0.00018463,7]
[389653447,1759768245966,-4382.045832,0.00018463,7]
[389653448,1759768245975,-2787.264623,0.00018463,7]
[389653449,1759768245984,-168.540227,0.00018463,7]
[389653450,1759768245993,-162.294121,0.00018463,7]
[389653451,1759768246002,-181.168478,0.00018463,7]
[389653452,1759768246012,-400.0,0.0001847,2]
[389653454,1759768246021,-300.0,0.0001847,2]
[389653455,1759768246030,-572.49786321,0.00018473,2]
[389653457,1759768246039,-500.0,0.00018473,2]
[389653458,1759768246049,-500.0,0.00018473,2]
[389653459,1759768246058,-500.0,0.00018473,2]
[389653460,1759768246068,-500.0,0.00018473,2]
[389653461,1759768246077,-500.0,0.00018473,2]
[389653462,1759768246086,-500.0,0.00018473,2]
[389653463,1759768246096,-160.37562684,0.00018473,2]
[389653464,1759768246105,-500.0,0.00018473,2]
[389653465,1759768246115,-561.17534405,0.00018473,2]
[389653466,1759768246124,-500.0,0.00018473,2]
[389653467,1759768246133,-500.0,0.00018473,2]
[389653468,1759768246143,-500.0,0.00018473,2]
[389653469,1759768246152,-500.12103995,0.00018473,2]
[389653470,1759768246162,-166.20669168,0.00018473,2]
[389653471,1759768246171,-161.18590711,0.00018473,2]
[389653472,1759768246180,-150.0,0.00018473,2]
[389653473,1759768246189,-150.0,0.00018499,2]
[389653474,1759768246199,-500.0,0.00018499,2]
[389653475,1759768246208,-234.64,0.00018499,2]
[389653476,1759768246217,-2137.01,0.000185,2]
[389653477,1759768246227,-548666.77176138,0.000185,2]
[389653478,1759768246236,-1448.12,0.000185,2]
[389653479,1759768246246,-22613.96,0.000185,2]
[389653480,1759768246255,-954.29549402,0.000185,2]
[389653481,1759768246266,-2099.76,0.000185,2]
[389653482,1759768246275,-151.0,0.000185,2]
[389653483,1759768246284,-151.0,0.000185,2]
[389653484,1759768246294,-151.0,0.000185,2]
[389653485,1759768246303,-151.0,0.000185,2]
[389653486,1759768246312,-151.0,0.000185,2]
[389653487,1759768246322,-151.0,0.000185,2]
[389653488,1759768246331,-151.0,0.000185,2]
[389653489,1759768246340,-153.891869,0.000185,2]
[389653490,1759768246350,-151.0,0.000185,2]
[389653491,1759768246365,-158.800682,0.000185,2]
[389653492,1759768246374,-158.800682,0.000185,2]
[389653493,1759768246383,-158.800682,0.000185,2]
[389653494,1759768246392,-158.800682,0.000185,2]
[389653495,1759768246402,-151.0,0.000185,2]
[389653496,1759768246412,-151.0,0.000185,2]
[389653497,1759768246421,-151.0,0.000185,2]
[389653498,1759768246433,-890.434819,0.000185,2]
[389653499,1759768246443,-890.434819,0.000185,2]
[389653500,1759768246453,-151.0,0.000185,2]
[389653501,1759768246463,-890.434819,0.000185,2]
[389653502,1759768246472,-890.434819,0.000185,2]
[389653503,1759768246482,-151.0,0.000185,2]
[389653504,1759768246491,-151.0,0.000185,2]
[389653505,1759768246501,-151.0,0.000185,2]
[389653506,1759768246511,-235.996007,0.000185,2]
[389653507,1759768246520,-235.996007,0.000185,2]
[389653508,1759768246530,-151.0,0.000185,2]
[389653509,1759768246539,-235.996007,0.000185,2]
[389653510,1759768246548,-214.045116,0.000185,2]
[389653511,1759768246557,-235.996007,0.000185,2]
[389653512,1759768246566,-151.0,0.000185,2]
[389653513,1759768246576,-151.0,0.000185,2]
[389653514,1759768246585,-151.0,0.000185,2]
[389653515,1759768246595,-151.0,0.000185,2]
[389653516,1759768246606,-151.0,0.000185,2]
[389653517,1759768246615,-151.0,0.000185,2]
[389653518,1759768246625,-151.0,0.000185,2]
[389653519,1759768246635,-151.0,0.000185,2]
[389653520,1759768246644,-151.0,0.000185,2]
[389653521,1759768246653,-151.0,0.000185,2]
[389653522,1759768246662,-151.0,0.000185,2]
[389653523,1759768246672,-151.0,0.000185,2]
[389653524,1759768246682,-151.0,0.000185,2]
[389653525,1759768246691,-151.0,0.000185,2]
[389653526,1759768246702,-151.0,0.000185,2]
[389653527,1759768246712,-151.0,0.000185,2]
[389653528,1759768246722,-151.0,0.000185,2]
[389653529,1759768246732,-283.433707,0.000185,2]
[389653530,1759768246741,-152.999974,0.000185,2]
[389653531,1759768246750,-283.433707,0.000185,2]
[389653532,1759768246760,-283.433707,0.000185,2]
[389653533,1759768246770,-283.433707,0.000185,2]
[389653534,1759768246780,-184.191018,0.000185,2]
[389653535,1759768246789,-151.0,0.000185,2]
[389653536,1759768246799,-184.191018,0.000185,2]
[389653537,1759768246809,-184.191018,0.000185,2]
[389653538,1759768246819,-184.191018,0.000185,2]
[389653539,1759768246829,-151.0,0.000185,2]
[389653540,1759768246839,-151.0,0.000185,2]
[389653541,1759768246849,-151.0,0.000185,2]
[389653542,1759768246859,-151.0,0.000185,2]
[389653543,1759768246869,-151.0,0.000185,2]
[389653544,1759768246879,-151.0,0.000185,2]
[389653545,1759768246890,-151.0,0.000185,2]
[389653546,1759768246900,-151.0,0.000185,2]
[389653547,1759768246910,-151.532054,0.000185,2]
[389653548,1759768246920,-296.658276,0.000185,2]
[389653549,1759768246929,-151.0,0.000185,2]
[389653550,1759768246939,-151.0,0.000185,2]
[389653551,1759768246948,-151.0,0.000185,2]
[389653552,1759768246958,-151.0,0.000185,2]
[389653553,1759768246967,-151.0,0.000185,2]
[389653554,1759768246978,-235.251234,0.000185,2]
[389653555,1759768246988,-272.585928,0.000185,2]
[389653556,1759768246997,-235.251234,0.000185,2]
[389653557,1759768247008,-235.251234,0.000185,2]
[389653558,1759768247019,-235.251234,0.000185,2]
[389653559,1759768247028,-193.090867,0.000185,2]
[389653560,1759768247038,-193.090867,0.000185,2]
[389653561,1759768247049,-193.090867,0.000185,2]
[389653562,1759768247059,-193.090867,0.000185,2]
[389653563,1759768247068,-151.0,0.000185,2]
[389653564,1759768247078,-151.0,0.000185,2]
[389653565,1759768247087,-151.0,0.000185,2]
[389653566,1759768247096,-151.0,0.000185,2]
[389653567,1759768247107,-254.558574,0.000185,2]
[389653568,1759768247116,-151.0,0.000185,2]
[389653569,1759768247125,-151.0,0.000185,2]
[389653570,1759768247135,-151.0,0.000185,2]
[389653571,1759768247145,-201.522713,0.000185,2]
[389653572,1759768247154,-201.522713,0.000185,2]
[389653573,1759768247164,-201.522713,0.000185,2]
[389653574,1759768247173,-201.522713,0.000185,2]
[389653575,1759768247182,-151.0,0.000185,2]
[389653576,1759768247191,-164.279192,0.000185,2]
[389653577,1759768247201,-151.0,0.000185,2]
[389653578,1759768247210,-164.279192,0.000185,2]
[389653579,1759768247220,-151.0,0.000185,2]
[389653580,1759768247229,-164.279192,0.000185,2]
[389653581,1759768247238,-151.0,0.000185,2]
[389653582,1759768247247,-151.0,0.000185,2]
[389653583,1759768247257,-164.279192,0.000185,2]
[389653584,1759768247266,-151.0,0.000185,2]
[389653585,1759768247277,-151.0,0.000185,2]
[389653586,1759768247286,-151.0,0.000185,2]
[389653587,1759768247295,-151.0,0.000185,2]
[389653588,1759768247305,-151.0,0.000185,2]
[389653589,1759768247314,-151.0,0.000185,2]
[389653590,1759768247323,-151.0,0.000185,2]
[389653591,1759768247333,-229.70114,0.000185,2]
[389653592,1759768247343,-210.139033,0.000185,2]
[389653593,1759768247353,-151.0,0.000185,2]
[389653594,1759768247368,-151.0,0.000185,2]
[389653595,1759768247378,-151.0,0.000185,2]
[389653596,1759768247388,-151.0,0.000185,2]
[389653597,1759768247399,-151.0,0.000185,2]
[389653598,1759768247409,-151.0,0.000185,2]
[389653599,1759768247419,-151.0,0.000185,2]
[389653600,1759768247429,-575.889768,0.000185,2]
[389653601,1759768247439,-151.0,0.000185,2]
[389653602,1759768247448,-271.15036,0.000185,2]
[389653603,1759768247458,-575.889768,0.000185,2]
[389653604,1759768247467,-575.889768,0.000185,2]
[389653605,1759768247476,-575.889768,0.000185,2]
[389653606,1759768247486,-153.056477,0.000185,2]
[389653607,1759768247496,-151.0,0.000185,2]
[389653608,1759768247505,-153.056477,0.000185,2]
[389653609,1759768247515,-151.0,0.000185,2]
[389653610,1759768247525,-153.056477,0.000185,2]
[389653611,1759768247535,-153.056477,0.000185,2]
[389653612,1759768247544,-151.0,0.000185,2]
[389653613,1759768247554,-151.181068,0.000185,2]
[389653614,1759768247564,-569.528123,0.000185,2]
[389653615,1759768247574,-151.788321,0.000185,2]
[389653616,1759768247583,-151.0,0.000185,2]
[389653617,1759768247593,-151.0,0.000185,2]
[389653618,1759768247603,-151.0,0.000185,2]
[389653619,1759768247612,-569.528123,0.000185,2]
[389653620,1759768247622,-151.0,0.000185,2]
[389653621,1759768247632,-569.528123,0.000185,2]
[389653622,1759768247641,-151.0,0.000185,2]
[389653623,1759768247651,-151.0,0.000185,2]
[389653624,1759768247660,-569.528123,0.000185,2]
[389653625,1759768247670,-151.0,0.000185,2]
[389653626,1759768247679,-151.0,0.000185,2]
[389653627,1759768247688,-151.0,0.000185,2]
[389653628,1759768247698,-151.0,0.000185,2]
[389653629,1759768247707,-2293.72161,0.0001851,2]
[389653630,1759768247716,-152.0,0.00018515,13]
[389653631,1759768247727,-1000.0,0.00018521,2]
[389653632,1759768247738,-500.3240277,0.00018521,2]
[389653633,1759768247748,-500.25568455,0.00018521,2]
[389653634,1759768247758,-1000.0,0.00018521,2]
[389653635,1759768247767,-1000.0,0.00018521,2]
[389653636,1759768247777,-1000.0,0.00018521,2]
[389653637,1759768247787,-1000.0,0.00018521,2]
[389653638,1759768247796,-1000.0,0.00018521,2]
[389653639,1759768247805,-156.90966503,0.00018521,2]
[389653640,1759768247815,-501.29274288,0.00018521,2]
[389653641,1759768247824,-1002.68034914,0.00018521,2]
[389653642,1759768247834,-1000.0,0.00018521,2]
[389653643,1759768247844,-1000.0,0.00018521,2]
[389653644,1759768247854,-416.39944123,0.00018521,2]
[389653645,1759768247863,-1000.0,0.00018521,2]
[389653646,1759768247873,-1000.0,0.00018521,2]
[389653647,1759768247884,-1000.0,0.00018521,2]
[389653648,1759768247894,-1000.0,0.00018521,2]
[389653649,1759768247904,-1000.0,0.00018521,2]
[389653650,1759768247913,-500.49683076,0.00018521,2]
[389653651,1759768247923,-1000.0,0.00018521,2]
[389653652,1759768247932,-1000.0,0.00018521,2]
[389653653,1759768247943,-1000.0,0.00018521,2]
[389653654,1759768247953,-1000.0,0.00018521,2]
[389653655,1759768247962,-165.86082714,0.00018521,2]
[389653656,1759768247971,-345.99838906,0.00018521,2]
[389653657,1759768247981,-1000.0,0.00018521,2]
[389653658,1759768247990,-150.0,0.0001857,2]
[389653659,1759768248000,-5000.0,0.00018574,2]
[389653660,1759768248009,-5000.0,0.00018574,2]
[389653661,1759768248021,-286.89571201,0.000186,3]
[389653662,1759768248031,-717.05549956,0.000186,2]
[389653663,1759768248042,-1031.3478133,0.00018603,2]
[389653664,1759768248053,-500.0,0.0001863,2]
[389653665,1759768248062,-2786.0,0.0001863,2]
[389653666,1759768248071,-500.0,0.0001863,2]
[389653667,1759768248081,-1249.0,0.0001863,2]
[389653668,1759768248090,-500.0,0.0001863,2]
[389653669,1759768248099,-500.0,0.0001863,2]
[389653670,1759768248154,-586.0,0.0001863,2]
[389653671,1759768248165,-470.0,0.0001863,2]
[389653672,1759768248175,-500.0,0.0001863,2]
[389653673,1759768248185,-151.0,0.0001863,2]
[389653674,1759768248195,-174.10146186,0.00018648,30]
[389653675,1759768248204,-354.9557599,0.00018699,2]
[389653676,1759768248213,-90213.5184285,0.000187,2]
[389653677,1759768248228,-407.603,0.000187,2]
[389653678,1759768248240,-748.00000014,0.000187,2]
[389653679,1759768248340,-156.71673795,0.00016438,2]
[389653680,1759768248351,-345.85222997,0.00016438,2]
[389653681,1759768248363,-151.0,0.00018,2]
[389653682,1759768248372,-151.0,0.000185,2]
[389653683,1759768248382,-1510.68103208,0.000187,2]
[389653684,1759768248393,-28005.44408548,0.000187,2]
[389653685,1759768248405,-1691.97943035,0.000187,2]
[389653686,1759768248421,-12328.01340001,0.000187,2]
[389653687,1759768248434,-525.64770641,0.000187,2]
[389653688,1759768248447,-11035.026,0.000187,2]
[389653689,1759768248458,-868.03393555,0.000187,2]
[389653690,1759768248469,-331.06967471,0.000187,2]
[389653691,1759768248480,-989.00000082,0.000187,2]
[389653692,1759768248491,-2651.07380472,0.000187,2]
[389653693,1759768248503,-4969.48763122,0.000187,2]
[389653694,1759768248518,-9223.36307797,0.000187,2]
[389653695,1759768248528,-624.45,0.000187,2]
[389653696,1759768248539,-442.92768199,0.000187,2]
[389653697,1759768248550,-7869.88771503,0.000187,2]
[389653698,1759768248565,-158.983716,0.00018,2]
[389653699,1759768248574,-3655.18903424,0.000187,2]
[389653700,1759768248589,-7322.83991345,0.000187,2]
[389653701,1759768248609,-6798.74545501,0.000187,2]
[389653702,1759768248620,-28915.58260798,0.000187,2]
[389653703,1759768248632,-1720.60782997,0.000187,2]
[389653704,1759768248643,-993.32694584,0.000187,2]
[389653705,1759768248654,-1050.2981998,0.000187,2]
[389653706,1759768248665,-692.36591423,0.000187,2]
[389653707,1759768248854,-262.42743268,0.00016338,2]
[389653708,1759768248864,-129.83256732,0.000185,2]
[389653709,1759768248876,-92.66113968,0.000185,2]
[389653710,1759768248885,-466.5,0.00018521,7]
[389653711,1759768248895,-12430.02072864,0.000187,2]
[389653712,1759768248992,-47.40621873,0.000187,2]
[389653713,1759768249009,-1834.25037325,0.000187,2]
[389653714,1759768249020,-10104.16017388,0.000187,2]
[389653715,1759768249030,-954.29549402,0.000187,2]
[389653716,1759768249040,-8000.0,0.00018748,4]
[389653717,1759768249049,-1000.0,0.0001876,2]
[389653718,1759768249059,-152.0,0.00018763,14]
[389653719,1759768249068,-1354.07,0.00018763,7]
[389653720,1759768249077,-1354.07,0.00018763,7]
[389653721,1759768249086,-1354.07,0.00018763,7]
[389653722,1759768249096,-1354.07,0.00018763,7]
[389653723,1759768249106,-370.68887098,0.0001877,7]
[389653724,1759768249115,-3715.77974058,0.00018789,2]
[389653725,1759768249125,-162.294121,0.00018794,2]
[389653726,1759768249134,-181.168478,0.00018794,2]
[389653727,1759768249143,-829.9,0.000188,6]
[389653728,1759768249152,-150.0,0.000188,2]
[389653729,1759768249161,-4405.30768951,0.00018801,2]
[389653730,1759768249170,-1302.51,0.00018831,2]
[389653731,1759768249179,-473.86,0.00018831,2]
[389653732,1759768249188,-158.94,0.00018849,2]
[389653733,1759768249197,-174.10146186,0.00018866,30]
[389653734,1759768249207,-300.0,0.0001887,2]
[389653735,1759768249216,-400.0,0.0001887,2]
[389653736,1759768249225,-400.0,0.0001887,2]
[389653737,1759768249234,-300.0,0.0001887,2]
[389653738,1759768249243,-151.723226,0.00018884,2]
[389653739,1759768249252,-2717.527174,0.00018884,2]
[389653740,1759768249261,-3170.448371,0.00018884,2]
[389653741,1759768249271,-220.547285,0.00018884,2]
[389653742,1759768249279,-155.028885,0.00018884,2]
[389653743,1759768249288,-172.168852,0.00018884,2]
[389653744,1759768249299,-4382.045832,0.00018884,2]
[389653745,1759768249308,-2787.264623,0.00018884,2]
[389653746,1759768249317,-6000.0,0.000189,6]
[389653747,1759768249326,-576.46691349,0.000189,2]
[389653748,1759768249335,-150.0,0.00018904,5]
[389653749,1759768249345,-500.0,0.00018904,2]
[389653750,1759768249357,-2786.0,0.00018904,2]
[389653751,1759768249370,-500.0,0.00018904,2]
[389653752,1759768249379,-1249.0,0.00018904,2]
[389653753,1759768249389,-500.0,0.00018904,2]
[389653754,1759768249399,-500.0,0.00018904,2]
[389653755,1759768249408,-586.0,0.00018904,2]
[389653756,1759768249418,-470.0,0.00018904,2]
[389653757,1759768249427,-132.14191141,0.00018904,2]
[389653758,1759768249441,-367.85808859,0.00018904,2]
[389653759,1759768249450,-151.0,0.00018904,2]
[389653760,1759768249460,-1600.0,0.00018923,2]
[389653761,1759768249469,-337.080449,0.00018929,2]
[389653762,1759768249478,-214.404971,0.00018929,2]
[389653763,1759768249487,-452.921196,0.00018929,2]
[389653764,1759768249496,-337.080449,0.00018929,2]
[389653765,1759768249505,-214.404971,0.00018929,2]
[389653766,1759768249514,-452.921196,0.00018929,2]
[389653767,1759768249523,-300.0,0.0001897,2]
[389653768,1759768249531,-400.0,0.0001897,2]
[389653769,1759768249540,-161.82299857,0.00018993,2]
[389653770,1759768249550,-300.0,0.00018998,2]
[389653771,1759768249559,-300.0,0.00018998,2]
[389653772,1759768249568,-300.0,0.00018998,2]
[389653773,1759768249577,-300.0,0.00018998,2]
[389653774,1759768249586,-300.0,0.00018998,2]
[389653775,1759768249595,-300.0,0.00018998,2]
[389653776,1759768249604,-18396.84532904,0.00018999,7]
[389653777,1759768249616,-489.5208308,0.00018999,7]
[389653778,1759768249627,-2053.9698084,0.00018999,7]
[389653779,1759768249641,-450.45,0.00018999,7]
[389653780,1759768249652,-1796.853242,0.00018999,7]
[389653781,1759768249663,-7481.96110459,0.00018999,7]
[389653782,1759768249674,-302.07127842,0.00018999,7]
[389653783,1759768249685,-4435.96512541,0.00018999,7]
[389653784,1759768249696,-458.56562217,0.00018999,7]
[389653785,1759768249707,-5318.76196531,0.00018999,7]
[389653786,1759768249718,-38021.09542532,0.00018999,7]
[389653787,1759768249727,-300.0,0.00018999,2]
[389653788,1759768249736,-300.0,0.00018999,2]
[389653789,1759768249746,-300.0,0.00018999,2]
[389653790,1759768249756,-300.0,0.00018999,2]
[389653791,1759768249766,-300.0,0.00018999,2]
[389653792,1759768249775,-300.0,0.00018999,2]
[389653793,1759768249784,-300.0,0.00018999,2]
[389653794,1759768249794,-206.76355589,0.00019,2]
[389653795,1759768249804,-5507.61641973,0.00019,2]
[389653796,1759768249814,-6000.000001,0.00019,2]
[389653797,1759768249823,-1000.0,0.00019,2]
[389653798,1759768249832,-3600.0,0.00019,3]